[Event "German Bundesliga 2022-23"]
[Site "Germany"]
[Date "2002.01.09"]
[Round "4"]
[White "Navara, David"]
[Black "Narayanan.S.L"]
[Result "1-0"]
[ECO "C54"]
[WhiteElo "2680"]
[BlackElo "2673"]
[Annotator "TA"]
[PlyCount "109"]
[EventDate "2022.10.21"]
[EventType "team-tourn"]
[EventCountry "GER"]
[SourceTitle "playchess.com"]
[Source "ChessBase"]
[SourceQuality "1"]
[TimeControl "40/6000+30:3000+30"]

{[%evp 10,109,22,20,28,10,18,16,19,11,14,0,0,0,11,5,0,-6,0,-7,22,25,26,33,43,41,31,39,45,45,27,-30,39,29,53,62,88,95,84,78,76,44,50,44,119,122,105,109,111,109,129,122,126,110,153,154,139,164,156,159,174,169,178,162,244,244,251,243,255,255,247,247,247,224,233,231,271,222,216,227,205,219,310,312,502,498,517,517,662,647,594,572,791,768,842,842,756,736,1540,1300,749,697]} 1. e4 {[%emt 0:01:00]} e5 {[%emt 0:01:00]} 2. Nf3 {[%emt 0:00:00]} Nc6 {[%emt 0:00:00]} 3. Bc4 {[%emt 0:00:00]} Bc5 {[%emt 0:00:00]} 4. d3 {[%emt 0:00:30]} Nf6 {[%emt 0:00:00]} 5. O-O {[%emt 0:00:00]} d6 {[%emt 0:00:00]} 6. c3 {[%emt 0:00:00]} a5 {[%emt 0:00:30] C54: Giuoco Piano: 4 c3 Nf6, main lines with 5 d4 and 5 d3.} 7. Re1 {[%emt 0:01:30]} Ba7 {[%emt 0:00:30]} 8. Nbd2 {[%emt 0:04:30]} O-O {[%emt 0:02:30] The position is equal.} 9. Nf1 {[%emt 0:03:30]} Be6 {[%emt 0:07:30] [#]} 10. Bb5 $146 {[%emt 0:02:30][%cal Bc4b5,Bb5a4,Ba4c2][%mdl 32]} (10. Bxe6 {simplifies} fxe6 11. Be3 Bxe3 12. Rxe3 a4 13. Ng3) ({Predecessor:} 10. Bb3 Qe7 11. Ng3 Nd8 12. d4 exd4 13. cxd4 Bxb3 14. Qxb3 Ne6 15. Qc4 Rfc8 16. Bd2 {1-0 (39) Todorovic,V (2045)-Johnsen,S Novi Sad 1990}) 10... Ne7 {[%emt 0:00:30]} 11. Ng3 {[%emt 0:01:30]} c6 {[%emt 0:07:30]} 12. Ba4 {[%emt 0:00:00]} Ng6 {[%emt 0:00:30]} 13. d4 {[%emt 0:05:00]} exd4 {[%emt 0:09:30]} 14. cxd4 {[%emt 0:01:30]} d5 {[%emt 0:00:30]} 15. e5 {[%emt 0:00:30]} Ne4 {[%emt 0:00:30]} 16. Bc2 {[%emt 0:05:30]} Bg4 {[%emt 0:01:30]} 17. Nxe4 {[%emt 0:02:30]} dxe4 {[%emt 0:00:30]} 18. Rxe4 {[%emt 0:03:30]} Bxf3 {[%emt 0:00:30]} 19. Qxf3 {[%emt 0:00:30]} Bxd4 {[%emt 0:00:30]} 20. Qf5 {[%emt 0:05:30]} (20. Be3 $142 Bxb2 21. Rd1) 20... c5 {[%emt 0:05:30]} (20... Qb6 $11) 21. Be3 $14 {[%emt 0:08:30]} Bxb2 {[%emt 0:04:30]} 22. Rd1 {[%emt 0:06:30]} Bd4 {[%emt 0:02:30]} 23. Bxd4 {[%emt 0:07:30]} cxd4 {[%emt 0:00:30]} 24. Rexd4 {[%emt 0:03:30][%cal Be4d4,Bd4d7,Bd7b7][%mdl 32]} Qe7 {[%emt 0:04:30]} 25. Rd7 {[%emt 0:01:30] White is much more active.} (25. Rd5 {simplifies} Rac8 26. g3 b6 27. Qe4) 25... Qxe5 {[%emt 0:00:30]} 26. Rxb7 {[%emt 0:00:30]} Rad8 {[%emt 0:19:30] Black is now going downhill.} (26... Qxf5 $14 27. Bxf5 Rfb8) 27. Qxe5 $16 {[%emt 0:00:30][%cal Od1d8]} Nxe5 {[%emt 0:01:30]} 28. Rxd8 $1 {[%emt 0:03:30]} Rxd8 {[%emt 0:00:00][%mdl 4096] Endgame KRB-KRN} 29. f4 {[%emt 0:00:30]} Nd7 {[%emt 0:16:00]} 30. Ra7 {[%emt 0:01:30]} g6 {[%emt 0:01:30]} 31. g3 {[%emt 0:06:30][%cal Oc2b3]} Rc8 {[%emt 0:06:10] [#]} 32. Bb3 {[%emt 0:00:00]} a4 {[%emt 0:00:16]} 33. Bxa4 {[%emt 0:05:00]} ({Don't play} 33. Rxd7 $6 axb3 34. axb3 Rc1+ 35. Kg2 Rb1 $14) 33... Nc5 {[%emt 0:02:52]} 34. Bb5 {[%emt 0:07:30]} Ne6 {[%emt 0:04:32]} 35. a4 {[%emt 0:04:30]} Rc2 {[%emt 0:03:23] [#]} 36. Bd3 $1 {[%emt 0:03:51]} Rd2 {[%emt 0:05:00]} (36... Rc3 $142) 37. Bc4 $18 {[%emt 0:00:11]} Nd4 {[%emt 0:00:52]} 38. Bxf7+ {[%emt 0:00:27]} Kh8 {[%emt 0:01:18]} 39. Bd5 {[%emt 0:00:18] Inhibits Nf3+.} Ne2+ {[%emt 0:00:25]} 40. Kf1 {[%emt 0:00:06] And now Ke1 would win.} Nxf4 {[%emt 0:01:38]} 41. Bf7 {[%emt 0:07:07]} Nd3 {[%emt 0:09:04]} 42. Rd7 {[%emt 0:00:30] Threatens to win with Bc4.} Rf2+ {[%emt 0:00:30]} 43. Kg1 {[%emt 0:00:00]} Rf3 {[%emt 0:00:30]} 44. Bd5 {[%emt 0:05:00]} Re3 {[%emt 0:00:30]} 45. a5 {[%emt 0:06:30] aiming for a6.} Nb4 {[%emt 0:02:30] Against a6} (45... Re1+ $142 46. Kg2 Ra1) 46. Bc4 {[%emt 0:01:30] Rb7 is the strong threat.} Rc3 $2 {[%emt 0:04:30]} (46... Nc6 {keeps fighting.} 47. a6 Ne5 48. Rd8+ Kg7) 47. Bb5 {[%emt 0:02:30] White is clearly winning.} Rc5 {[%emt 0:06:30]} 48. Rb7 {[%emt 0:00:30]} Rc1+ {[%emt 0:01:30]} 49. Bf1 {[%emt 0:03:30]} Nd5 {[%emt 0:00:30]} 50. Kf2 {[%emt 0:00:30]} Rc2+ {[%emt 0:00:30]} 51. Kf3 {[%emt 0:00:30]} Nc7 {[%emt 0:03:30]} 52. Bd3 {[%emt 0:00:30]} Rc6 {[%emt 0:00:30]} 53. Ke4 {[%emt 0:00:30]} h5 {[%emt 0:03:30]} 54. Rb6 {[%emt 0:01:30]} Rc5 {[%emt 0:00:30]} 55. a6 {[%emt 0:00:30] Weighted Error Value: White=0.05 (flawless) /Black=0.23 (precise)} ({Not} 55. Rxg6 Rxa5 56. h4 Nd5 $18) 1-0

[Event "German Bundesliga 2022-23"]
[Site "Germany"]
[Date "2002.01.09"]
[Round "4"]
[White "Saric, Ivan"]
[Black "Ragger, Markus"]
[Result "1/2-1/2"]
[ECO "C84"]
[WhiteElo "2674"]
[BlackElo "2632"]
[Annotator "TA"]
[PlyCount "139"]
[EventDate "2022.10.21"]
[EventType "team-tourn"]
[EventCountry "GER"]
[SourceTitle "playchess.com"]
[Source "ChessBase"]
[SourceQuality "1"]
[TimeControl "40/6000+30:3000+30"]

{[%evp 13,139,19,23,4,1,11,4,0,6,3,12,14,-7,0,28,0,9,14,27,18,6,11,7,0,35,13,18,16,20,26,57,48,65,31,39,32,44,47,78,48,72,82,69,71,66,72,71,70,67,72,74,66,113,110,110,102,97,88,86,74,83,42,43,38,46,37,37,37,37,39,47,35,35,35,35,31,31,31,55,55,55,54,56,35,35,28,28,18,18,11,28,11,28,18,28,28,28,28,28,28,28,18,19,18,28,11,28,11,28,11,11,14,14,14,28,0,14,0,28,20,28,11,11,11,11,8,16,8]} 1. e4 {[%emt 0:01:00]} e5 {[%emt 0:01:00]} 2. Nf3 {[%emt 0:00:00]} Nc6 {[%emt 0:00:00]} 3. Bb5 {[%emt 0:00:00][%cal Bf1b5,Bb5a4,Ba4b3,Bb3a2][%mdl 32]} a6 {[%emt 0:00:00]} 4. Ba4 {[%emt 0:00:00]} Nf6 {[%emt 0:00:00]} 5. O-O {[%emt 0:00:00]} Be7 {[%emt 0:00:00]} 6. d3 {[%emt 0:00:30]} b5 {[%emt 0:00:30]} 7. Bb3 {[%emt 0:00:30]} d6 {[%emt 0:00:00]} 8. a3 {[%emt 0:01:30] [#] C84: Closed Ruy Lopez: Unusual White 6th moves.} (8. a4 $5 {[%cal Ra4b5]}) 8... Na5 $146 {[%emt 0:00:00]} ({Predecessor:} 8... O-O 9. Nc3 Be6 10. Nd5 Bxd5 11. exd5 Nd4 12. Nxd4 exd4 13. c3 dxc3 14. bxc3 Nd7 15. d4 Nb6 16. a4 Bf6 17. Qd3 Nxa4 18. Bxa4 bxa4 19. Rxa4 Qc8 20. Be3 Qb7 21. Qc4 {½-½ (21) Fogarasi,T (2440)-Lukacs,P (2515) Budapest 1998}) 9. Ba2 {[%emt 0:00:30]} c5 {[%emt 0:00:30]} 10. Nc3 {[%emt 0:00:30]} Be6 {[%emt 0:00:30]} 11. Nh4 {[%emt 0:01:30]} O-O {[%emt 0:00:30][%cal Of6e4]} 12. Nf5 {[%emt 0:00:30]} Bxf5 {[%emt 0:00:00]} 13. exf5 {[%emt 0:00:00]} d5 {[%emt 0:00:00]} 14. Qf3 {[%emt 0:04:00][%cal Rc3d5]} Nc6 {[%emt 0:06:30]} 15. Nxd5 {[%emt 0:02:30]} (15. Bxd5 Nd4 16. Bxa8 Nxf3+ 17. Bxf3 Qd7 $17) 15... Nd4 {[%emt 0:00:30][%csl LRc2,LRf3]} 16. Nxf6+ {[%emt 0:00:30]} Bxf6 {[%emt 0:00:30]} 17. Qd1 {[%emt 0:00:30]} Nxf5 {[%emt 0:01:30]} 18. c3 {[%emt 0:00:30]} Ne7 {[%emt 0:42:30]} 19. Re1 {[%emt 0:04:30]} Qd7 {[%emt 0:03:30]} 20. Qf3 {[%emt 0:03:30]} Rac8 {[%emt 0:10:30]} 21. a4 {[%emt 0:06:30]} Rc6 {[%emt 0:07:30]} 22. axb5 {[%emt 0:03:30]} axb5 {[%emt 0:00:30]} 23. Bb1 {[%emt 0:00:30] White is more active.} (23. Bb3 {is more complex.} Rfc8 24. h4 Rd6 25. Ra8) 23... Rd6 {[%emt 0:00:30]} 24. g3 {[%emt 0:02:30]} Rc8 {[%emt 0:10:30]} 25. h4 {[%emt 0:00:30]} Qc6 {[%emt 0:02:30]} 26. Qe4 {[%emt 0:06:30]} Qxe4 {[%emt 0:05:13]} 27. dxe4 {[%emt 0:00:30]} Rb8 {[%emt 0:01:03]} 28. Be3 {[%emt 0:00:30]} c4 {[%emt 0:00:16]} 29. Bc2 {[%emt 0:00:30]} Nc8 {[%emt 0:01:22]} 30. Red1 {[%emt 0:07:30]} Be7 {[%emt 0:01:15]} 31. f4 {[%emt 0:03:30]} Rxd1+ {[%emt 0:02:00]} 32. Rxd1 {[%emt 0:09:30]} exf4 {[%emt 0:05:49]} (32... b4 $14) 33. Bxf4 $16 {[%emt 0:00:30]} (33. gxf4 $6 Bxh4 34. Kg2 Nb6 $11) 33... Rb7 {[%emt 0:00:10]} 34. e5 {[%emt 0:00:30]} Nb6 {[%emt 0:04:38]} 35. Be4 {[%emt 0:02:30]} Rd7 {[%emt 0:01:30]} 36. Ra1 {[%emt 0:03:30]} Na4 {[%emt 0:01:16]} 37. Bc6 {[%emt 0:00:30][%csl LRb5,LRd7]} Rd8 {[%emt 0:00:02]} 38. Ra2 {[%emt 0:07:30]} ({Much less strong is} 38. Bxb5 Nxb2 39. Kg2 g6 $16) 38... Rd1+ $1 {[%emt 0:00:40]} 39. Kg2 {[%emt 0:00:00]} Rb1 $1 {[%emt 0:00:05]} 40. Bxb5 {[%emt 0:00:00]} Rxb2+ {[%emt 0:00:08]} 41. Rxb2 {[%emt 0:50:30]} Nxb2 $14 {[%emt 0:50:04][%mdl 4096] Endgame KBB-KBN} 42. Be3 {[%emt 0:00:00]} Bd8 {[%emt 0:00:00]} 43. Bd4 {[%emt 0:00:00]} Ba5 {[%emt 0:00:00]} 44. Kf3 {[%emt 0:00:00]} Nd1 {[%emt 0:00:00]} 45. Bxc4 {[%emt 0:00:00] aiming for e6.} Bxc3 {[%emt 0:00:00] [#]} 46. e6 $1 {[%emt 0:00:00]} fxe6 {[%emt 0:00:00]} (46... Bxd4 {gets mated.} 47. e7 (47. exf7+ $2 {is the wrong capture.} Kf8 $19) 47... g6 48. e8=Q+ Kg7 49. Qxf7+ Kh6 50. Qf8+ Bg7 51. Qf4+ Kh5 52. Qg5#) 47. Bxe6+ {[%emt 0:00:00]} Kh8 $1 {[%emt 0:00:00]} 48. Bc5 {[%emt 0:00:00] Bb3 is the strong threat. This pair of bishops is nice.} g6 {[%emt 0:00:00]} 49. Bb3 {[%emt 0:00:00]} Nb2 {[%emt 0:00:00]} 50. Ke3 {[%emt 0:00:00]} h5 {[%emt 0:00:00]} 51. Ke4 {[%emt 0:00:00]} Kg7 {[%emt 0:00:00]} 52. Be3 {[%emt 0:00:00]} Kh7 {[%emt 0:00:00]} 53. Kd5 {[%emt 0:00:00]} Kg7 {[%emt 0:00:00]} 54. Bc2 {[%emt 0:00:00]} Kf7 {[%emt 0:00:00]} 55. Bh6 {[%emt 0:00:00]} Kf6 {[%emt 0:00:00]} 56. Bf4 {[%emt 0:00:00]} Kf7 {[%emt 0:00:00]} 57. Bb3 {[%emt 0:00:00]} Kg7 {[%emt 0:00:00]} 58. Ke4 {[%emt 0:00:00]} Kh7 {[%emt 0:00:00]} 59. Bc1 {[%emt 0:00:00]} Kg7 {[%emt 0:00:00]} (59... Bg7 $5) 60. Bg5 {[%emt 0:00:00]} Kh7 {[%emt 0:00:00]} 61. Be7 {[%emt 0:00:00]} Kg7 {[%emt 0:00:00]} 62. Bd6 {[%emt 0:00:00]} Bf6 {[%emt 0:00:00]} 63. Bf4 {[%emt 0:00:00]} Bc3 {[%emt 0:00:00]} 64. Be3 {[%emt 0:00:00]} Kh7 {[%emt 0:00:00]} 65. Bc5 {[%emt 0:01:00]} Kg7 {[%emt 0:00:00]} 66. Ba3 {[%emt 0:00:30]} Bf6 {[%emt 0:00:00]} 67. Ke3 {[%emt 0:02:30]} Be5 {[%emt 0:00:00] The position is equal.} 68. Kd2 {[%emt 0:00:00]} Kf6 {[%emt 0:00:00]} 69. Kc2 {[%emt 0:00:00]} g5 {[%emt 0:00:42]} 70. Bxb2 {[%emt 0:01:30] Weighted Error Value: White=0.07 (flawless) /Black=0.06 (flawless)} 1/2-1/2

[Event "German Bundesliga 2022-23"]
[Site "Germany"]
[Date "2002.01.09"]
[Round "4"]
[White "Tari, Aryan"]
[Black "Indjic, Aleksandar"]
[Result "1/2-1/2"]
[ECO "E11"]
[WhiteElo "2660"]
[BlackElo "2631"]
[Annotator "TA"]
[PlyCount "88"]
[EventDate "2022.10.21"]
[EventType "team-tourn"]
[EventCountry "GER"]
[SourceTitle "playchess.com"]
[Source "ChessBase"]
[SourceQuality "1"]
[TimeControl "40/6000+30:3000+30"]

{[%evp 9,88,11,17,0,0,0,0,10,5,0,0,0,0,0,0,0,0,0,0,0,0,0,0,0,0,0,0,-25,-5,-5,0,0,0,-11,-9,-31,0,0,0,0,0,0,0,0,0,0,0,0,0,0,0,0,0,0,0,0,0,0,0,0,0,0,0,0,0,0,0,0,0,0,0,0,0,0,0,0,0,0,0,8,8]} 1. d4 {[%emt 0:01:00]} d5 {[%emt 0:02:00]} 2. c4 {[%emt 0:00:00]} e6 {[%emt 0:00:30]} 3. Nf3 {[%emt 0:00:00]} Nf6 {[%emt 0:00:00]} 4. g3 {[%emt 0:00:30]} Bb4+ {[%emt 0:02:00]} 5. Bd2 {[%emt 0:00:00]} a5 {[%emt 0:02:30]} 6. Qa4+ {[%emt 0:05:00] E11: Bogo-Indian.} Bd7 {[%emt 0:03:30][%cal Bc8d7,Bd7c6,Bc6d5][%mdl 32]} 7. Qc2 {[%emt 0:00:30]} dxc4 {[%emt 0:00:00]} 8. Qxc4 {[%emt 0:06:30]} Bc6 {[%emt 0:02:00] [#]} 9. Bg2 $146 {[%emt 0:09:30]} (9. Bxb4 {simplifies} axb4 10. Bg2 Qd6 11. Nbd2) ({Predecessor:} 9. Bxb4 axb4 10. Qxb4 Ra4 11. Qb3 Rxd4 12. Nc3 Rd6 13. Bg2 O-O 14. O-O Ne4 15. a4 {½-½ (39) Popov,L (2400)-Berovski,K (2250) Bankia 1992}) 9... Bd5 {[%emt 0:05:30]} 10. Qd3 {[%emt 0:14:30]} Be4 {[%emt 0:02:30] Inhibits a3.} 11. Qe3 {[%emt 0:01:30]} Nc6 {[%emt 0:00:30][%cal Oc6d4]} 12. O-O {[%emt 0:06:30]} Bxf3 {[%emt 0:01:30]} 13. Bxf3 {[%emt 0:04:30]} Nxd4 {[%emt 0:00:30] [#] White must now prevent ...Nc2.} 14. Bxb7 {[%emt 0:02:30] A strong pair of Bishops.} Rb8 {[%emt 0:00:00]} 15. Bxb4 {[%emt 0:04:30]} axb4 {[%emt 0:01:00]} 16. Bg2 {[%emt 0:03:30]} O-O {[%emt 0:01:30]} 17. Qd3 {[%emt 0:02:30] Against Nc2} (17. Nd2 $2 Nc2 18. Qf4 e5 $19) 17... b3 {[%emt 0:04:30]} 18. Na3 {[%emt 0:05:30] Against Nc2} bxa2 {[%emt 0:03:30]} 19. Rxa2 {[%emt 0:01:30]} Nb3 {[%emt 0:00:30]} 20. Qc2 {[%emt 0:02:30]} c5 {[%emt 0:01:30]} 21. e3 {[%emt 0:03:30]} Qa5 {[%emt 0:00:30]} 22. Rd1 {[%emt 0:00:30] Prevents Nd5.} h5 {[%emt 0:00:30]} (22... Rfd8 $5) 23. Bf1 {[%emt 0:03:30] The position is equal.} Ng4 {[%emt 0:02:30]} 24. Bc4 {[%emt 0:01:30]} Rfd8 {[%emt 0:01:30]} 25. Bxb3 {[%emt 0:04:30] Nc4 is the strong threat.} Rxd1+ {[%emt 0:00:00]} 26. Qxd1 {[%emt 0:00:00] Threatens to win with Nc4.} Rxb3 $1 {[%emt 0:00:00][%mdl 64] [#]} 27. h3 {[%emt 0:10:29][%cal Oh3g4]} Nxe3 {[%emt 0:00:30]} 28. fxe3 {[%emt 0:00:02]} (28. Qxb3 $2 {is a self mate.} Qe1+ 29. Kh2 Qxf2+ 30. Kh1 Qg2#) 28... Rxe3 {[%emt 0:00:30]} 29. Kf2 {[%emt 0:03:19] Inhibits Re1.} (29. Qxh5 $2 {leads to mate.} Qe1+ 30. Kh2 Qxg3+ 31. Kh1 Re1#) 29... Re5 {[%emt 0:00:00]} 30. Ra1 {[%emt 0:00:42]} Qb4 {[%emt 0:07:00] Inhibits Nc4. And now ...Rd5 would win.} 31. Qd8+ {[%emt 0:01:53]} Kh7 {[%emt 0:01:30]} 32. Qd3+ {[%emt 0:00:12]} Rf5+ {[%emt 0:00:30]} 33. Kg1 {[%emt 0:00:19] Strongly threatening Nc4.} Qxb2 {[%emt 0:01:30]} 34. Rf1 {[%emt 0:01:38]} Qd4+ {[%emt 0:02:30]} (34... g6 {with more complications.} 35. Nc4 Qd4+ 36. Qxd4 cxd4 37. Rf4 Rxf4 38. gxf4 f6) 35. Qxd4 {[%emt 0:00:04]} Rxf1+ {[%emt 0:00:00]} 36. Kxf1 {[%emt 0:00:04] White wants to mate with Qe5.} cxd4 $11 {[%emt 0:00:00][%mdl 4096] Endgame KN-KP} 37. Ke2 {[%emt 0:00:22]} Kg6 {[%emt 0:02:30]} 38. Kd3 {[%emt 0:01:29]} h4 {[%emt 0:01:30]} 39. g4 {[%emt 0:05:34]} f5 {[%emt 0:00:30]} 40. gxf5+ {[%emt 0:00:45]} (40. Kxd4 fxg4 41. Ke3 gxh3 $19) 40... Kxf5 {[%emt 0:00:30]} 41. Kxd4 {[%emt 0:51:31]} Kf4 {[%emt 0:49:30] aiming for ...g5.} 42. Nc4 {[%emt 0:00:37]} Kg3 {[%emt 0:03:30]} 43. Ke3 $1 {[%emt 0:00:30]} Kxh3 {[%emt 0:00:30] ( -> ...Kg2)} 44. Kf3 {[%emt 0:00:47]} Kh2 {An interesting draw.   Weighted Error Value: White=0.02 (flawless) /Black=0.02 (flawless)} 1/2-1/2

[Event "German Bundesliga 2022-23"]
[Site "Germany"]
[Date "2002.01.09"]
[Round "4"]
[White "Andersen, Mads"]
[Black "Prusikin, Michael"]
[Result "1/2-1/2"]
[ECO "C11"]
[WhiteElo "2615"]
[BlackElo "2522"]
[Annotator "TA"]
[PlyCount "60"]
[EventDate "2022.10.21"]
[EventType "team-tourn"]
[EventCountry "GER"]
[SourceTitle "playchess.com"]
[Source "ChessBase"]
[SourceQuality "1"]
[TimeControl "40/6000+30:3000+30"]

{[%evp 13,60,0,0,0,16,5,9,10,41,0,0,0,0,-97,-96,-117,-117,-118,-92,-127,-118,-140,-94,-117,-127,-402,-399,-400,-391,-448,-449,-645,-622,-1045,-1047,-1018,-982,-910,-479,-472,-79,-81,-82,-80,-80,-167,-172,-158,-30]} 1. e4 {[%emt 0:01:00]} e6 {[%emt 0:01:00]} 2. d4 {[%emt 0:00:30]} d5 {[%emt 0:00:00]} 3. Nc3 {[%emt 0:00:00]} Nf6 {[%emt 0:00:00]} 4. e5 {[%emt 0:00:00]} Nfd7 {[%emt 0:00:00]} 5. Nce2 {[%emt 0:00:30]} c5 {[%emt 0:00:00]} 6. c3 {[%emt 0:00:30]} Nc6 {[%emt 0:00:30]} 7. Nf3 {[%emt 0:00:30]} Be7 {[%emt 0:03:30]} 8. a3 {[%emt 0:12:30] C11: French: Classical System: 4 e5 and 4 Bg5 dxe4.} Qb6 {[%emt 0:22:30]} 9. b4 {[%emt 0:01:30]} cxd4 {[%emt 0:03:30]} 10. cxd4 {[%emt 0:00:30] [#] The position is equal.} f6 $146 {[%emt 0:10:30]} (10... a5 $5 {[%cal Ra5b4]}) ({Predecessor:} 10... O-O 11. Bg5 f6 12. exf6 Bxf6 13. h4 a5 14. b5 Ne7 15. a4 e5 16. dxe5 Nxe5 {0-1 (26) Salles,H-Kruel,F Campinas 1962}) 11. Be3 {[%emt 0:19:30] Strongly threatening Nf4.} fxe5 {[%emt 0:06:30]} 12. Nxe5 {[%emt 0:01:30]} O-O {[%emt 0:08:30]} 13. Rb1 {[%emt 0:11:30]} (13. Nf3 $11 {remains equal.}) 13... a5 $1 $17 {[%emt 0:07:30][%cal Ra5b4]} 14. Nxd7 {[%emt 0:09:30]} Bxd7 {[%emt 0:00:30]} 15. b5 {[%emt 0:00:30]} Nd8 {[%emt 0:01:30][%cal Bc6d8,Bd8e6,Be6d4,Bd4f3][%mdl 32]} 16. Qa4 {[%emt 0:14:30]} Rc8 {[%emt 0:06:30]} 17. Ng3 {[%emt 0:05:30]} e5 {[%emt 0:05:30]} (17... Nf7 $142 {Hoping for ...Rc3.} 18. Qb3 Nd6) 18. Be2 {[%emt 0:08:30]} Ne6 $1 {[%emt 0:04:30][%cal Re5d4]} 19. dxe5 {[%emt 0:09:56][%mdl 8192]} (19. O-O $17 {was forced.} Nxd4 20. Bxd4 exd4 21. Qb3) 19... d4 $19 {[%emt 0:00:30][%cal Bd5d4,Bd4d3][%mdl 32]} 20. Bd2 {[%emt 0:00:09]} d3 $1 {[%emt 0:00:30]} 21. Bf3 {[%emt 0:00:11]} Rxf3 {[%emt 0:01:30][%mdl 64]} ({Weaker is} 21... Rc2 22. Qxa5 Qd4 23. Be3 (23. O-O $2 b6 $19) 23... d2+ 24. Qxd2 Rxd2 25. Bxd4 Rxd4 26. Ne2 $19) 22. gxf3 {[%emt 0:01:37]} (22. O-O $142 Rff8 23. Bxa5) 22... Nd4 {[%emt 0:00:30]} 23. Be3 {[%emt 0:00:01]} Nxf3+ {[%emt 0:15:21]} 24. Kd1 {[%emt 0:00:02]} Qe6 {[%emt 0:06:27] ...Rc3 is the strong threat.} 25. Qb3 {[%emt 0:07:34] Against Rc3} Qxb3+ {[%emt 0:00:20]} 26. Rxb3 {[%emt 0:00:02]} a4 $2 {[%emt 0:00:37]} (26... Nxe5 $19 {is more deadly.} 27. Bf4 a4) 27. Rxd3 $17 {[%emt 0:01:11]} Bxb5 {[%emt 0:00:02]} 28. Nf5 {[%emt 0:01:38] [#]} Bf8 {[%emt 0:00:28][%mdl 1024] Black has strong compensation. This pair of bishops is nice.} 29. Rd5 {[%emt 0:02:02]} (29. Nd6 $17 Rd8 30. Bb6 (30. Nxb5 Rxd3+ 31. Kc2 Rd5 $17) (30. Rd5 $2 Bc6 $19) 30... Bxd3 31. Bxd8) 29... Bc6 $19 {[%emt 0:00:58]} 30. Ra5 {[%emt 0:00:02] [#]} Nxe5 {[%emt 0:01:00] Weighted Error Value: White=0.80/Black=0.58} 1/2-1/2